Workbook

Sheet 东四 南三
A1: 天心区东四线、南三线道路提质改造项目检测清单
A2: 序号 | B2: 检测类别 | D2: 检测内容 | F2: 项目总工程量 | G2: 抽样要求 | H2: 检测项 | I2: 检测数量 | J2: 单位 | K2: 招标单价 | L2: 招标总价 | M2: 投标单价 | N2: 投标总价 | O2: 备注
A3: 一 | B3: 材料检测 | C3: 1 | D3: 沥青混合料 | F3: / | G3: 每台班一批 | H3: 沥青混合料试件密度试验 表干法 /沥青含量试验（离心分离法）/浸水马歇尔试验 | I3: 4 | J3: 组 | K3: 2436 | L3: 9744 | O3: 1组试件数量4个
C4: 2 | D4: 石材 | F4: / | G4: 同一厂家、同一类型8000件为一批 | H4: 体积密度 /抗压强度 | I4: 4 | J4: 组 | K4: 112 | L4: 448
C5: 3 | D5: 水泥 | F5: / | G5: 按同一生产厂家、同一等级、同一品种、同一批号且连续进厂的水泥，袋装不超过200t为一批，散装不超过500t为一批，每批抽样不少于一次 | H5: 水泥强度、安定性、细度、凝结时间、标准稠度 | I5: 4 | J5: 组 | K5: 208 | L5: 832
C6: 4 | D6: 砂浆配合比 | F6: / | G6: 每种型号一批 | H6: 配合比设计 | I6: 1 | J6: 组 | K6: 231 | L6: 231
C7: 5 | D7: 混凝土试块 | F7: / | G7: 每一工作班或每100盘但不超过100m³的同配比混凝土取样不少于2组（标养、同条件各不少于1组）同时还应考虑为检验结构或构件施工阶段混凝土强度所必需的试件组数。标准护条件达到28d，同条件养护的试件在等效养护龄期达到600℃，即送到试验室 | H7: 立方体抗压 | I7: 30 | J7: 组 | K7: 31.5 | L7: 945
C8: 6 | D8: 钢筋原材 | F8: / | G8: 每批由同一牌号、同一炉罐号、同一规格的钢筋组成，每批重量不大于60t | H8: 钢筋抗拉强度及伸长率试验 圆钢φ6-φ25 /钢筋弯曲试验 | I8: 10 | J8: 组 | K8: 56 | L8: 560
C9: 7 | D9: 级配碎石 | F9: / | G9: 以400m³或600t为一验收批 | H9: 颗粒级配 /压碎指标/针片状含量 | I9: 2 | J9: 组 | K9: 129.5 | L9: 259
C10: 8 | D10: 聚酯玻纤布 | F10: / | G10: 同厂家同型号为一批 | H10: 单位面积质量 /厚度测定 /拉伸试验 /梯形撕破强力试验 /CBR顶破强力试验 | I10: 1 | J10: 组 | K10: 647.5 | L10: 647.5
C11: 9 | D11: 玻纤格栅 | F11: / | G11: 同厂家同型号为一批 | H11: 网孔尺寸测定 /拉伸试验 /粘焊点极限剥离力试验 | I11: 1 | J11: 组 | K11: 403.2 | L11: 403.2
C12: 10 | D12: 土样 | F12: / | G12: 5000m³为一批 | H12: 筛分 水筛法 /液塑限 液限塑限联合测定法 /击实试验 重型 | I12: 1 | J12: 组 | K12: 360 | L12: 360
C13: 11 | D13: 砖砌块 | F13: / | G13: 同型号10万块为一批 | H13: 抗压强度 /空心率 /外观质量 | I13: 2 | J13: 组 | K13: 196 | L13: 392
C14: 12 | D14: 种植土 | F14: / | G14: 5000m³为一批 | I14: 1 | J14: 组 | K14: 800 | L14: 800
C15: 13 | D15: 井盖 | F15: / | G15: 同型号200个为一批 | I15: 2 | J15: 组 | K15: 500 | L15: 1000
C16: 14 | D16: 抗裂贴 | F16: / | G16: 同厂家同型号为一批 | H16: 不透水性 /低温柔度 /断裂延伸率 /拉伸强度 | I16: 1 | J16: 组 | K16: 189 | L16: 189
A17: 二 | B17: 道路工程 | C17: 15 | D17: 回填压实度 | F17: / | G17: 每1000㎡检测1组（3点） | H17: 路基压实度 | I17: 30 | J17: 点 | K17: 42 | L17: 1260
C18: 16 | D18: 路面弯沉 | F18: 0.53km | G18: 杠杆仪法检测，每20米每车道测1个点 | H18: 弯沉测试 杠杆仪 | I18: 108 | J18: 点 | K18: 10.5 | L18: 1134
C19: 17 | D19: 路面平整度 | F19: 0.53km | G19: 每20米连续量取2尺 | I19: 52 | J19: 尺 | K19: 24.5 | L19: 1274
C20: 18 | D20: 路面压实度及厚度 | F20: 6500㎡ | G20: 每1000㎡检测1点 | H20: 压实度 核子仪/ 路面厚度 | I20: 7 | J20: 点 | K20: 389 | L20: 2723
A21: 三 | B21: 交通工程 | C21: 19 | D21: 标线 | E21: 厚度 | F21: 1.065km | G21: 东四线527米，南三线538米 | H21: 道路交通标线涂层厚度 | I21: 1065 | J21: m | K21: 500 | L21: 532.5
C22: 20 | E22: 摩擦系数 | F22: 1.065km | G22: 东四线527米，南三线538米 | H22: 反光标线抗滑性能 | I22: 1065 | J22: m | K22: 500 | L22: 532.5
C23: 21 | E23: 逆反射系数 | F23: 1.065km | G23: 东四线527米，南三线538米 | H23: 反光标线逆反射系数 | I23: 1065 | J23: m | K23: 500 | L23: 532.5
C24: 22 | D24: 标志 | E24: 标志板面反光膜逆反射系数 | F24: 1.065km | G24: 东四线527米，南三线538米 | H24: 标志面反光膜等级及逆反射系数 | I24: 1065 | J24: m | K24: 300 | L24: 319.5
L25: 25118.7
A26: 本表内所有工程量均为预估工程量，最终检测工程量以建设单位要求或相关文件要求的实际检测数量为准。

Sheet 高云路
A1: 天心区高云路道路提质改造项目检测清单
A2: 序号 | B2: 检测类别 | D2: 检测内容 | F2: 项目总工程量 | G2: 抽样要求 | H2: 检测项 | I2: 检测数量 | J2: 单位 | K2: 招标单价 | L2: 招标总价 | M2: 投标单价 | N2: 投标总价 | O2: 备注
A3: 一 | B3: 材料检测 | C3: 1 | D3: 沥青混合料 | F3: / | G3: 每台班一批 | H3: 沥青混合料试件密度试验 表干法 /沥青含量试验（离心分离法）/浸水马歇尔试验 | I3: 15 | J3: 组 | K3: 2436 | L3: 36540 | O3: 1组试件数量4个
C4: 2 | D4: 石材 | F4: / | G4: 同一厂家、同一类型8000件为一批 | H4: 体积密度 /抗压强度 | I4: 4 | J4: 组 | K4: 112 | L4: 448
C5: 3 | D5: 水泥 | F5: / | G5: 按同一生产厂家、同一等级、同一品种、同一批号且连续进厂的水泥，袋装不超过200t为一批，散装不超过500t为一批，每批抽样不少于一次 | H5: 水泥强度、安定性、细度、凝结时间、标准稠度 | I5: 4 | J5: 组 | K5: 208 | L5: 832
C6: 4 | D6: 混凝土试块 | F6: / | G6: 每一工作班或每100盘但不超过100m³的同配比混凝土取样不少于2组（标养、同条件各不少于1组）同时还应考虑为检验结构或构件施工阶段混凝土强度所必需的试件组数。标准护条件达到28d，同条件养护的试件在等效养护龄期达到600℃，即送到试验室 | H6: 水泥混凝土抗压强度试验 立方体抗压 | I6: 100 | J6: 组 | K6: 31.5 | L6: 3150
C7: 5 | D7: 钢筋原材 | F7: / | G7: 每批由同一牌号、同一炉罐号、同一规格的钢筋组成，每批重量不大于60t | H7: 钢筋抗拉强度及伸长率试验 圆钢φ6-φ25 /钢筋弯曲试验 | I7: 10 | J7: 组 | K7: 56 | L7: 560
C8: 6 | D8: 级配碎石 | F8: / | G8: 以400m³或600t为一验收批 | H8: 颗粒级配 /压碎指标/针片状含量 | I8: 2 | J8: 组 | K8: 129.5 | L8: 259
C9: 7 | D9: 聚酯玻纤布 | F9: / | G9: 同厂家同型号为一批 | H9: 单位面积质量 /厚度测定 /拉伸试验 //梯形撕破强力试验 //CBR顶破强力试验 | I9: 1 | J9: 组 | K9: 647.5 | L9: 647.5
C10: 8 | D10: 玻纤格栅 | F10: / | G10: 同厂家同型号为一批 | H10: 网孔尺寸测定 /拉伸试验 /粘焊点极限剥离力试验 | I10: 1 | J10: 组 | K10: 403.2 | L10: 403.2
C11: 9 | D11: 土样 | F11: / | G11: 5000m³为一批 | H11: 筛分 水筛法 /液塑限 液限塑限联合测定法 击实试验 重型 | I11: 2 | J11: 组 | K11: 360 | L11: 720
C12: 10 | D12: 砖砌块 | F12: / | G12: 同型号10万块为一批 | H12: 抗压强度 /空心率/外观质量 | I12: 2 | J12: 组 | K12: 196 | L12: 392
C13: 11 | D13: 种植土 | F13: / | G13: 5000m³为一批 | I13: 1 | J13: 组 | K13: 800 | L13: 800
C14: 12 | D14: 水泥稳定碎石 | F14: / | G14: 每台班且不超过每2000m²为一批 | H14: 无机结合料稳定土击实试验 重型击实/无机结合料稳定土无侧限抗压强度试验 静压力法 /水泥或石灰稳定土中水泥或石灰剂量测定 EDTA滴定法 | I14: 6 | J14: 组 | K14: 300.8 | L14: 1804.8
C15: 13 | D15: 井盖 | F15: / | G15: 同型号200个为一批 | I15: 2 | J15: 组 | K15: 500 | L15: 1000
C16: 14 | D16: 抗裂贴 | F16: / | G16: 同厂家同型号为一批 | H16: 不透水性 /低温柔度 /断裂延伸率 /拉伸强度 | I16: 1 | J16: 组 | K16: 189 | L16: 189
C17: 15 | D17: 连续缠绕DBJ管 | F17: / | G17: 同厂家同型号为一批 | H17: 环刚度 /柔韧性 /抗冲击性 落锤冲击 | I17: 4 | J17: 组 | K17: 621 | L17: 2484
C18: 16 | D18: 电线电缆 | F18: / | G18: 同厂家同规格型号同一生产批次每10000米为一批 | H18: 绝缘厚度 /导体电阻 /绝缘电阻 /不延燃试验 /导电性能 | I18: 4 | J18: 组 | K18: 465.5 | L18: 1862
C19: 17 | D19: 饰面漆 | F19: / | G19: 同厂家同型号5t为一批 | H19: 容器中状态 /低温稳定性/颜色及外观 /干燥时间 /耐碱性 /耐水性 /粘结强度 /施工性 /制样、养护 | I19: 4 | J19: 组 | K19: 166 | L19: 664
C20: 18 | D20: 钢筋混凝土排水管 | F20: / | G20: 同厂家同型号为一批 | H20: 外观质量 /尺寸偏差/内水压力/外压 | I20: 2 | J20: 组 | K20: 709.8 | L20: 1419.6 | O20: 一组检测数量3件
C21: 19 | D21: 腻子 | F21: / | G21: 同厂家同型号5t为一批 | H21: 耐水性/耐碱性/打磨性/粘结强度/耐水粘结强度/制样、养护 | I21: 2 | J21: 组 | K21: 374.5 | L21: 749
A22: 二 | B22: 道路工程 | C22: 20 | D22: 路基压实度 | F22: / | G22: 每1000㎡检测1组（3点） | H22: 路基压实度 | I22: 240 | J22: 点 | K22: 42 | L22: 10080
C23: 21 | D23: 路面基层厚度 | F23: / | G23: 每1000㎡检测1点 | H23: / | I23: 10 | J23: 点 | K23: 200 | L23: 2000
C24: 22 | D24: 路面基层压实度 | F24: / | G24: 每1000㎡检测1点 | H24: / | I24: 10 | J24: 点 | K24: 126 | L24: 1260
C25: 23 | D25: 路面弯沉 | F25: 1.7km*6车道 | G25: 杠杆仪法检测，每20米每车道测1个点 | H25: 弯沉测试 杠杆仪 | I25: 516 | J25: 点 | K25: 10.5 | L25: 5418
C26: 24 | D26: 路面平整度 | F26: 1.7km | G26: / | I26: 170 | J26: 尺 | K26: 24.5 | L26: 4165
C27: 25 | D27: 路面压实度及厚度 | F27: 39685㎡ | G27: 每1000㎡检测1点 | H27: 压实度 核子仪/路面厚度 | I27: 40 | J27: 点 | K27: 389 | L27: 15560
A28: 三 | B28: 交通工程 | C28: 26 | D28: 标线 | E28: 厚度 | F28: 1.7km | G28: 高云路1.718km | H28: 道路交通标线涂层厚度 | I28: 1718 | J28: m | K28: 500 | L28: 859
C29: 27 | E29: 摩擦系数 | F29: 1.7km | G29: 高云路1.718km | H29: 反光标线抗滑性能 | I29: 1718 | J29: m | K29: 500 | L29: 859
C30: 28 | E30: 逆反射系数 | F30: 1.7km | G30: 高云路1.718km | H30: 反光标线逆反射系数 | I30: 1718 | J30: m | K30: 500 | L30: 859
C31: 29 | D31: 标志 | E31: 几何尺寸 | F31: 1.7km | G31: 高云路1.718km | H31: 标志汉字、数字、拉丁字体及尺寸 | I31: 1718 | J31: m | K31: 300 | L31: 515.4
C32: 30 | E32: 标志面反光膜逆射光系数 | F32: 1.7km | G32: 高云路1.718km | H32: 标志面反光膜等级及逆反射系数 | I32: 1718 | J32: m | K32: 300 | L32: 515.4
C33: 31 | E33: 标志金属构件镀层厚度 | F33: 1.7km | G33: 高云路1.718km | H33: 标志金属构件镀层厚度 | I33: 1718 | J33: m | K33: 300 | L33: 515.4
A34: 四 | B34: 排水工程 | C34: 32 | D34: 排水管道 | E34: CCTV | F34: 1.7km | G34: / | I34: 5500 | J34: m | K34: 12.5 | L34: 68750
L35: 166280.3
A36: 本表内所有工程量均为预估工程量，最终检测工程量以建设单位要求或相关文件要求的实际检测数量为准。

Sheet Sheet2 (hidden)
A1: 部位 | B1: 断面 | C1: 断面根数 | D1: 断面长度 | E1: 间距 | F1: 总数 | G1: 备注 | H1: =F11+F17+F24+F29 -> 13491 | L1: 部位 | M1: 断面 | N1: 断面长度 | Q1: 平均值
A2: 1#基坑 | B2: A1-B1 | C2: 4 | D2: 140 | E2: 1.3 | F2: =E2*D2*C2 -> 728 | L2: 1#基坑 | M2: A1-B1 | N2: 7.6 | Q2: =N13+O20+O28+O35 -> 29 | S2: =H4*Q2 -> 78900 | U2: 400
B3: B1-C1 | C3: 3 | D3: 32 | E3: 1.5 | F3: =E3*D3*C3 -> 144 | M3: B1-C1 | N3: 7.64 | T3: =S2/U2 -> 197
B4: C1-C'1 | C4: 2 | D4: 50 | E4: 1.5 | F4: =E4*D4*C4 -> 150 | H4: =D11+D17+D24+D29 -> 2679 | M4: C1-C'1 | N4: 7.2
B5: C'1-D1 | C5: 3 | D5: 41 | E5: 1.5 | F5: 184.5 | M5: C'1-D1 | N5: 7.4
B6: D1-D1' | C6: 9 | D6: 51 | E6: 1.5 | F6: 688.5 | M6: D1-D1' | N6: 1.03
B7: D1'-E1 | C7: 5 | D7: 42 | E7: 1.5 | F7: 315 | M7: D1'-E1 | N7: 4.9
B8: E1-F1 | C8: 3 | D8: 128 | E8: 1.5 | F8: 576 | M8: E1-F1 | N8: 4.5
B9: E1-F1 | C9: 2 | D9: 128 | E9: 1.3 | F9: 333 | M9: E1-F1 | N9: 8
B10: G1-A1 | C10: 3 | D10: 148 | E10: 1.5 | F10: 666 | N10: 9.9
A11: 总计 | D11: =SUM(D2:D10) -> 760 | F11: =SUM(F2:F10) -> 3785 | N11: 8.64
A12: 部位 | B12: 断面 | C12: 断面根数 | D12: 断面长度 | E12: 间距 | F12: 总数 | L12: 总计 | M12: G1-A1 | N12: 5.52
A13: 2#基坑 | B13: A2-B2 | C13: 4 | D13: 290 | E13: 1.3 | F13: =E13*D13*C13 -> 1508 | L13: 部位 | N13: =AVERAGE(N2:N12) -> 7
B14: B2-C2 | C14: 5 | D14: 230 | E14: 1.3 | F14: =E14*D14*C14 -> 1495 | L14: 2#基坑
B15: C2-D2 | C15: 4 | D15: 230 | E15: 1.3 | F15: =E15*D15*C15 -> 1196 | M15: 断面 | N15: 断面根数 | O15: 断面长度 | P15: 间距
B16: D2-A2 | C16: 4 | D16: 230 | E16: 1.3 | F16: 1196 | M16: A2-B2 | N16: 4 | O16: 8.77 | P16: 1.3
A17: 总计 | D17: =SUM(D13:D16) -> 980 | F17: =SUM(F13:F16) -> 5395 | M17: B2-C2 | N17: 5 | O17: 8.35
A18: 部位 | B18: 断面 | C18: 断面根数 | D18: 断面长度 | E18: 间距 | F18: 总数 | M18: C2-D2 | N18: 4 | O18: 8.3 | P18: 1.3
A19: 3#基坑 | B19: A3-B3 | C19: 4 | D19: 157 | E19: 1.3 | F19: =E19*D19*C19 -> 816.4 | L19: 总计 | M19: D2-A2 | N19: 4 | O19: 8.8 | P19: 1.3
B20: B3-C3 | C20: 2 | D20: 220 | E20: 1.3 | F20: =E20*D20*C20 -> 572 | L20: 部位 | O20: =AVERAGE(O16:O19) -> 9
B21: C3-D3 | C21: 4 | D21: 126 | E21: 1.3 | F21: =E21*D21*C21 -> 655.2 | L21: 3#基坑
B22: D3-D3' | C22: 4 | D22: 32 | E22: 1.3 | F22: 166.4 | M22: 断面 | N22: 断面根数 | O22: 断面长度 | P22: 间距
B23: D3'-A3 | C23: 4 | D23: 207 | E23: 1.3 | F23: 1076.4 | M23: A3-B3 | N23: 4 | O23: 7.29 | P23: 1.3
A24: 总计 | D24: =SUM(D19:D23) -> 742 | F24: =SUM(F19:F23) -> 3286 | M24: B3-C3 | N24: 2 | O24: 8.35 | P24: 1.3
A25: 部位 | B25: 断面 | C25: 断面根数 | D25: 断面长度 | E25: 间距 | F25: 总数 | M25: C3-D3 | N25: 4 | O25: 7.212 | P25: 1.3
A26: 4#基坑 | B26: A4-B4 | C26: 4 | D26: 113 | E26: 1.3 | F26: =E26*D26*C26 -> 587.6 | M26: D3-D3' | N26: 4 | O26: 5.702 | P26: 1.3
B27: C4-D4 | C27: 4 | D27: 51 | E27: 1.3 | F27: =E27*D27*C27 -> 265.2 | M27: D3'-A3 | O27: 7.212
B28: D4-A4 | C28: 4 | D28: 33 | E28: 1.3 | F28: 171.6 | L28: 总计 | N28: 4 | O28: =AVERAGE(O23:O27) -> 7 | P28: 1.3
A29: 总计 | D29: =SUM(D26:D28) -> 197 | F29: =SUM(F26:F28) -> 1024 | L29: 4#基坑
A30: 4#基坑 | B30: B4-C4 | C30: 3 | D30: 98 | E30: 1.8 | F30: =E30*D30*C30 -> 529 | G30: 锚索 | M30: 断面 | N30: 断面根数 | O30: 断面长度 | P30: 间距
A31: 挡土墙 | B31: B4-BP3 | C31: 2 | D31: 84 | E31: 1.8 | F31: =E31*D31*C31 -> 302 | G31: 锚索 | M31: A4-B4 | N31: 4 | O31: 8.77 | P31: 1.3
A32: 总计 | D32: =SUM(D30:D31) -> 182 | F32: =SUM(F30:F31) -> 832 | L32: 总计 | M32: C4-D4 | N32: 4 | O32: 3.9 | P32: 1.3
M33: D4-A4 | N33: 4 | O33: 8 | P33: 1.3
L34: 4#基坑 | O34: 8
L35: 总计 | O35: =AVERAGE(O31:O34) -> 7
